bitfinex-derivatives/quotes_SOLF0:USTF0_20260312
["timestamp","ask_amount","ask_price","bid_price","bid_amount"]
[1773312925610,3.85662889,86.659,86.618,14.22488598]
[1773312925812,3.85662889,86.659,86.619,3.83688598]
[1773312926906,3.85662889,86.659,86.621,10.388]
[1773312927806,2.48288822,86.67,86.625,3.83688598]
[1773312928113,3.85662889,86.671,86.625,3.83688598]
[1773312928309,3.85662889,86.669,86.625,3.83688598]
[1773312928909,3.85662889,86.668,86.625,3.83688598]
[1773312929710,3.85662889,86.668,86.628,14.22388598]
[1773312929911,3.85662889,86.668,86.629,3.83688598]
[1773312930914,3.85662889,86.668,86.631,10.387]
[1773312936020,3.85662889,86.668,86.631,14.22388598]
[1773312936220,10.381,86.676,86.636,3.83688598]
[1773312937612,3.85662889,86.675,86.636,3.83688598]
[1773312937819,14.23862889,86.672,86.636,3.83688598]
[1773312941519,43.58,86.707,86.636,3.83688598]
[1773312941520,3.85662889,86.668,86.636,3.83688598]
[1773312942319,10.383,86.666,86.636,3.83688598]
[1773312942816,3.85662889,86.668,86.636,3.83688598]
[1773312944121,4.0052011,86.689,86.636,3.83688598]
[1773312944421,10.382,86.675,86.636,3.83688598]
[1773312944622,4.0052011,86.674,86.636,3.83688598]
[1773312946024,10.382,86.673,86.636,3.83688598]
[1773312946625,4.0052011,86.674,86.64,10.386]
[1773312946822,4.0052011,86.674,86.641,3.84255096]
[1773312947023,4.0052011,86.685,86.641,3.84255096]
[1773312947722,10.38,86.69,86.649,3.84255096]
[1773312947923,4.0052011,86.696,86.651,3.84255096]
[1773312948928,10.378,86.705,86.661,3.84255096]
[1773312950527,10.378,86.701,86.661,3.84255096]
[1773312951122,10.378,86.701,86.662,10.383]
[1773312951422,10.378,86.701,86.662,14.32296415]
[1773312951630,3.8616383,86.704,86.663,3.93996415]
[1773312952926,3.8616383,86.704,86.666,10.383]
[1773312953524,3.8616383,86.704,86.668,10.382]
[1773312954730,10.377,86.715,86.672,3.93996415]
[1773312955530,14.2386383,86.715,86.672,3.93996415]
[1773312955734,3.8616383,86.714,86.672,3.93996415]
[1773312956633,3.8616383,86.714,86.674,14.32196415]
[1773312960436,3.8616383,86.714,86.674,3.93996415]
[1773312961232,10.377,86.712,86.674,14.32196415]
[1773312961434,14.2386383,86.712,86.674,14.32196415]
[1773312962634,3.8616383,86.712,86.677,3.93996415]
[1773312963830,3.8616383,86.712,86.678,10.381]
[1773312964036,3.8616383,86.712,86.679,3.93996415]
[1773312965028,3.8616383,86.712,86.668,3.93996415]
[1773312965939,3.8616383,86.712,86.66,2.48577081]
[1773312965940,10.378,86.708,86.671,3.93996415]
[1773312967837,14.2396383,86.708,86.671,3.93996415]
[1773312969140,10.378,86.703,86.671,3.93996415]
[1773312969535,3.8616383,86.708,86.671,3.93996415]
[1773312975943,3.8616383,86.701,86.651,3.93996415]
[1773312976246,3.8616383,86.712,86.671,3.93996415]
[1773312976447,3.8616383,86.729,86.681,3.93996415]
[1773312977048,10.376,86.719,86.681,3.93996415]
[1773312978148,3.8616383,86.726,86.682,3.93996415]
[1773312979852,10.376,86.724,86.682,3.93996415]
[1773312980044,3.8616383,86.723,86.682,3.93996415]
[1773312980252,3.8616383,86.723,86.685,3.68878766]
[1773312984254,3.8616383,86.723,86.691,3.68878766]
[1773312985362,3.8616383,86.723,86.693,10.379]
[1773312987056,3.82048053,86.736,86.694,3.68878766]
[1773312987761,3.82048053,86.736,86.696,10.379]
[1773312988154,10.374,86.735,86.697,3.68878766]
[1773312991360,14.19448053,86.735,86.697,3.68878766]
[1773312993670,3.82048053,86.734,86.697,3.68878766]
[1773312997273,3.82048053,86.732,86.697,3.68878766]
[1773312998773,3.82048053,86.729,86.673,3.68878766]
[1773312999174,14.19648053,86.724,86.688,10.38]
[1773312999374,3.82048053,86.724,86.685,3.68878766]
[1773313000971,3.82048053,86.724,86.694,10.379]
[1773313005374,3.82048053,86.724,86.688,3.78040563]
[1773313006978,3.82048053,86.724,86.69,10.38]
[1773313007977,3.82048053,86.724,86.692,10.379]
[1773313008779,3.82048053,86.724,86.692,14.15940563]
[1773313010082,3.82048053,86.724,86.698,10.379]
[1773313011176,3.82048053,86.724,86.693,3.78040563]
[1773313016682,3.82048053,86.724,86.685,10.38]
[1773313017082,3.82048053,86.724,86.685,14.05788132]
[1773313017284,3.82048053,86.724,86.686,3.67788132]
[1773313017585,3.82048053,86.724,86.687,10.38]
[1773313017780,3.82048053,86.724,86.688,3.67788132]
[1773313018985,3.82048053,86.724,86.695,10.379]
[1773313020181,3.82048053,86.724,86.701,10.378]
[1773313020383,3.79711062,86.741,86.702,3.67788132]
[1773313021988,3.79711062,86.739,86.702,3.67788132]
[1773313023990,3.79711062,86.739,86.703,10.378]
[1773313027291,3.79711062,86.736,86.686,3.67788132]
[1773313028887,3.79711062,86.735,86.693,10.379]
[1773313030088,3.79711062,86.735,86.693,14.05688132]
[1773313030488,3.79711062,86.735,86.695,10.379]
[1773313032795,3.79711062,86.735,86.695,14.05688132]
[1773313032991,3.79711062,86.735,86.696,3.67788132]
[1773313036097,3.79711062,86.735,86.699,10.379]
[1773313036300,3.79711062,86.735,86.7,3.67788132]
[1773313037599,10.373,86.743,86.7,3.67788132]
[1773313037600,10.373,86.743,86.704,3.67788132]
[1773313038295,14.17011062,86.743,86.704,3.67788132]
[1773313038599,3.79711062,86.742,86.704,3.67788132]
[1773313039495,10.374,86.738,86.704,3.67788132]
[1773313040897,14.33896516,86.738,86.704,3.67788132]
[1773313041200,3.96496516,86.737,86.704,3.67788132]
[1773313042496,10.375,86.733,86.704,3.67788132]
[1773313042701,3.96496516,86.737,86.704,3.67788132]
[1773313049500,3.96496516,86.734,86.704,3.67788132]
[1773313052103,3.96496516,86.734,86.705,10.378]
[1773313052301,3.96496516,86.734,86.704,3.67788132]
[1773313052705,3.96496516,86.734,86.691,3.77878009]
[1773313053601,3.96496516,86.744,86.705,3.77878009]
[1773313053997,3.96496516,86.742,86.705,3.77878009]
[1773313056706,3.96496516,86.739,86.705,3.77878009]
[1773313057802,3.96496516,86.735,86.697,10.379]
[1773313058002,3.96496516,86.735,86.698,3.77878009]
[1773313061011,3.96496516,86.735,86.701,3.77878009]
[1773313062004,10.373,86.743,86.703,3.77878009]
[1773313062204,43.58,86.747,86.703,3.77878009]
[1773313062404,3.96496516,86.746,86.703,3.77878009]
[1773313062804,10.373,86.75,86.711,3.77878009]
[1773313063905,10.373,86.75,86.713,3.91094039]
[1773313065511,14.21948918,86.75,86.713,3.91094039]
[1773313066811,3.84648918,86.75,86.713,3.91094039]
[1773313067017,3.84648918,86.75,86.715,3.91094039]
[1773313070316,3.84648918,86.75,86.716,10.377]
[1773313070915,3.67826915,86.749,86.709,10.377]
[1773313072118,3.67826915,86.747,86.709,10.377]
[1773313072717,3.67826915,86.747,86.709,14.28649794]
[1773313073411,3.67826915,86.747,86.711,10.377]
[1773313075420,46.04115736,86.76,86.717,3.90949794]
[1773313075620,3.67826915,86.759,86.717,3.90949794]
[1773313076721,3.67826915,86.757,86.717,3.90949794]
[1773313076914,3.67826915,86.757,86.721,10.376]
[1773313077619,3.67826915,86.749,86.705,3.90949794]
[1773313079024,3.67826915,86.749,86.712,10.377]
[1773313082822,2.48115736,86.74,86.705,3.90949794]
[1773313083019,3.67826915,86.729,86.69,3.90949794]
[1773313083521,3.67826915,86.729,86.696,10.379]
[1773313084116,3.67826915,86.729,86.69,3.90949794]
[1773313084719,3.67826915,86.739,86.698,3.90949794]
[1773313086029,3.67826915,86.739,86.702,10.378]
[1773313087922,3.67826915,86.739,86.702,14.28749794]
[1773313088329,15.09971477,86.76,86.71,2.48115736]
[1773313088541,3.67826915,86.759,86.711,3.90949794]
[1773313088934,3.67826915,86.759,86.72,10.376]
[1773313089440,3.67826915,86.759,86.721,3.90949794]
[1773313094439,3.67826915,86.757,86.721,3.90949794]
[1773313096540,3.67826915,86.755,86.721,3.90949794]
[1773313097741,3.67826915,86.753,86.721,3.90949794]
[1773313101335,3.67826915,86.753,86.7,2.48115736]
[1773313101336,3.8815013,86.749,86.711,3.96869205]
[1773313102139,3.8815013,86.749,86.712,10.377]
[1773313103542,3.8815013,86.749,86.712,3.96869205]
[1773313104843,3.8815013,86.749,86.715,10.377]
[1773313111544,3.8815013,86.748,86.712,3.96869205]
[1773313112949,3.8815013,86.746,86.712,3.96869205]
[1773313113947,10.373,86.745,86.712,3.96869205]
[1773313114150,3.8815013,86.744,86.712,3.96869205]
[1773313118344,10.373,86.745,86.712,3.96869205]
[1773313118548,3.8815013,86.761,86.722,3.96869205]
[1773313119854,3.8815013,86.758,86.722,3.96869205]
[1773313120855,10.372,86.756,86.722,3.96869205]
[1773313122152,14.2535013,86.756,86.722,3.96869205]
[1773313124958,43.56,86.761,86.725,3.8621084]
[1773313125152,3.73797165,86.76,86.725,3.8621084]
[1773313125953,3.73797165,86.76,86.729,10.375]
[1773313126456,3.73797165,86.76,86.725,3.8621084]
[1773313129958,3.73797165,86.76,86.726,10.375]
[1773313132762,3.73797165,86.76,86.726,14.03829844]
[1773313135665,3.73797165,86.76,86.727,3.66329844]
[1773313135866,3.73797165,86.76,86.729,10.375]
[1773313136060,3.73797165,86.76,86.73,3.66329844]
[1773313136765,3.73797165,86.76,86.732,10.375]
[1773313137065,3.73797165,86.76,86.732,14.03829844]
[1773313139867,3.73797165,86.76,86.732,3.66329844]
[1773313146872,3.73797165,86.76,86.705,3.66329844]
[1773313147173,3.93345764,86.758,86.705,3.66329844]
[1773313147973,3.93345764,86.758,86.725,10.376]
[1773313149373,14.30545764,86.757,86.722,3.66329844]
[1773313153170,43.56,86.759,86.722,3.66329844]
[1773313153171,14.30545764,86.755,86.722,3.66329844]
[1773313154174,14.30545764,86.752,86.722,3.66329844]
[1773313155472,3.93345764,86.752,86.723,10.376]
[1773313155676,3.93345764,86.752,86.723,14.03929844]
[1773313156476,3.93345764,86.752,86.701,21.22511018]
[1773313156477,53.932,86.759,86.726,3.66329844]
[1773313157676,57.86545764,86.759,86.726,3.66329844]
[1773313159578,14.30545764,86.757,86.726,3.66329844]
[1773313160579,10.372,86.752,86.726,3.66329844]
[1773313167792,43.56,86.759,86.714,3.69246386]
[1773313167793,10.373,86.749,86.714,3.69246386]
[1773313168189,4.01489909,86.748,86.714,3.69246386]
[1773313172097,10.373,86.749,86.714,3.69246386]
[1773313177600,14.38789909,86.743,86.714,3.69246386]
[1773313178199,4.01489909,86.758,86.714,3.69246386]
[1773313179505,4.01489909,86.756,86.714,3.69246386]
[1773313185210,3.84173584,86.753,86.714,3.69246386]
[1773313185407,3.84173584,86.753,86.712,10.377]
[1773313185408,3.84173584,86.753,86.716,3.69258434]
[1773313187215,10.371,86.76,86.716,3.69258434]
[1773313187513,3.84173584,86.759,86.716,3.69258434]
[1773313188402,3.84173584,86.75,86.716,3.69258434]
[1773313194012,3.84173584,86.75,86.719,14.39108759]
[1773313194906,3.84173584,86.75,86.68,28.30501594]
[1773313194907,3.84173584,86.75,86.711,4.01508759]
[1773313195913,3.84173584,86.75,86.723,10.376]
[1773313196108,47.27500199,86.761,86.723,14.39108759]
[1773313196310,47.27500199,86.761,86.724,4.01508759]
[1773313196611,3.71500199,86.76,86.724,4.01508759]
[1773313200409,3.71500199,86.76,86.723,10.376]
[1773313200619,3.71500199,86.76,86.723,14.39108759]
[1773313201010,3.71500199,86.756,86.723,4.01508759]
[1773313201317,3.71500199,86.756,86.705,4.01508759]
[1773313201512,3.71500199,86.739,86.694,4.01508759]
[1773313202116,3.71500199,86.739,86.695,14.39408759]
[1773313202320,3.71500199,86.739,86.68,2.48046718]
[1773313202321,3.71500199,86.729,86.69,21.22511018]
[1773313202516,3.71500199,86.719,86.686,21.22511018]
[1773313202918,3.71500199,86.719,86.684,4.01508759]
[1773313203125,2.48046718,86.74,86.684,4.01508759]
[1773313203317,3.71500199,86.759,86.701,4.01508759]
[1773313203512,3.71500199,86.759,86.706,4.01508759]
[1773313203716,3.71500199,86.759,86.722,4.01508759]
[1773313204121,3.71500199,86.759,86.7,2.48046718]
[1773313204122,3.71500199,86.759,86.709,4.01508759]
[1773313204619,3.71500199,86.749,86.709,4.01508759]
[1773313204820,3.71500199,86.739,86.697,4.01508759]
[1773313205216,3.71500199,86.738,86.697,4.01508759]
[1773313206915,3.71500199,86.738,86.699,4.01508759]
[1773313207120,3.71500199,86.75,86.701,4.01508759]
[1773313207322,3.71500199,86.75,86.706,4.01508759]
[1773313208627,3.71500199,86.75,86.711,14.39208759]
[1773313209120,3.71500199,86.75,86.712,4.01508759]
[1773313209526,3.71500199,86.75,86.714,4.01508759]
[1773313209824,3.71500199,86.762,86.714,4.01508759]
[1773313210020,11.4284586,86.773,86.72,2.48046718]
[1773313210021,3.71500199,86.773,86.72,2.48046718]
[1773313210325,3.71500199,86.773,86.736,10.374]
[1773313210527,3.71500199,86.773,86.737,4.01508759]
[1773313211826,14.08500199,86.773,86.737,4.01508759]
[1773313212022,2.48046718,86.77,86.737,4.01508759]
[1773313212423,3.71500199,86.772,86.737,4.01508759]
[1773313212927,10.37,86.77,86.737,4.01508759]
[1773313214026,14.08500199,86.77,86.737,4.01508759]
[1773313214225,3.71500199,86.769,86.737,4.01508759]
[1773313214827,3.71500199,86.769,86.725,4.01508759]
[1773313215230,3.71500199,86.759,86.714,4.01508759]
[1773313215429,3.71500199,86.739,86.702,4.01508759]
[1773313215729,3.71500199,86.739,86.691,25.24019777]
[1773313216233,2.48046718,86.73,86.692,4.01508759]
[1773313216723,2.48046718,86.73,86.694,10.379]
[1773313216929,6.19546917,86.75,86.694,4.01508759]
[1773313217129,6.19546917,86.75,86.696,4.01508759]
[1773313217721,3.71500199,86.75,86.701,4.01508759]
[1773313217928,3.71500199,86.75,86.71,4.01508759]
[1773313218926,10.372,86.754,86.714,4.01508759]
[1773313219932,10.372,86.754,86.715,10.377]
[1773313220432,10.372,86.754,86.716,3.76046222]
[1773313220633,14.36465999,86.747,86.705,3.76046222]
[1773313220930,3.99165999,86.746,86.705,3.76046222]
[1773313221732,3.99165999,86.746,86.711,3.76046222]
[1773313222230,3.99165999,86.758,86.714,3.76046222]
[1773313223831,3.99165999,86.758,86.716,10.377]
[1773313224738,3.99165999,86.758,86.716,14.13746222]
[1773313225636,3.99165999,86.756,86.716,14.13746222]
[1773313226836,10.372,86.755,86.716,14.13746222]
[1773313227041,3.99165999,86.754,86.716,14.13746222]
[1773313228232,3.99165999,86.739,86.695,21.22511018]
[1773313228433,3.99165999,86.739,86.694,3.76046222]
[1773313229136,3.99165999,86.739,86.695,3.76046222]
[1773313229946,3.99165999,86.739,86.698,3.76046222]
[1773313233946,10.374,86.738,86.698,3.76046222]
[1773313234353,10.374,86.735,86.698,3.76046222]
[1773313234545,14.36565999,86.735,86.698,3.76046222]
[1773313238444,10.375,86.732,86.698,3.76046222]
[1773313240944,2.48178407,86.75,86.701,3.76046222]
[1773313241144,3.99165999,86.749,86.701,3.76046222]
[1773313241641,10.374,86.741,86.703,14.13846222]
[1773313242151,10.374,86.741,86.704,3.76046222]
[1773313243443,3.88085339,86.715,86.668,3.95179066]
[1773313244948,2.48178407,86.72,86.669,3.95179066]
[1773313245152,3.88085339,86.729,86.671,3.95179066]
[1773313245850,3.88085339,86.722,86.677,3.95179066]
[1773313246750,10.375,86.73,86.681,3.95179066]
[1773313247952,10.375,86.73,86.69,3.95179066]
[1773313249461,10.375,86.73,86.692,3.95179066]
[1773313250356,14.19051667,86.73,86.692,3.95179066]
[1773313250856,3.81551667,86.729,86.692,3.95179066]
[1773313251651,3.81551667,86.729,86.694,3.98252713]
[1773313255052,3.81551667,86.729,86.696,10.379]
[1773313255757,3.81551667,86.729,86.696,14.36152713]
[1773313259454,3.81551667,86.729,86.697,3.98252713]
[1773313259660,10.374,86.737,86.697,3.98252713]
[1773313260161,14.18951667,86.737,86.697,3.98252713]
[1773313260760,14.18951667,86.737,86.7,3.98252713]
[1773313265159,3.81551667,86.736,86.7,3.98252713]
[1773313267662,10.374,86.735,86.7,3.98252713]
[1773313269165,3.81551667,86.73,86.692,10.379]
[1773313269564,3.81551667,86.73,86.692,14.36152713]
[1773313270067,3.81551667,86.73,86.692,10.379]
[1773313270265,3.81551667,86.73,86.693,3.98252713]
[1773313270861,10.375,86.728,86.693,3.98252713]
[1773313272466,3.81551667,86.73,86.693,3.98252713]
[1773313272866,3.81551667,86.73,86.69,2.48178407]
[1773313273169,3.81551667,86.73,86.69,3.98252713]
[1773313273870,14.19051667,86.73,86.69,3.98252713]
[1773313274268,14.19051667,86.73,86.691,3.98252713]
[1773313275168,3.81551667,86.729,86.691,3.98252713]
[1773313276067,3.81551667,86.729,86.694,3.98252713]
[1773313276272,3.81551667,86.749,86.694,3.98252713]
[1773313276668,3.81551667,86.744,86.699,3.98252713]
[1773313276865,2.48178407,86.74,86.699,3.98252713]
[1773313277070,3.81551667,86.739,86.699,3.98252713]
[1773313277373,3.81551667,86.734,86.699,3.98252713]
[1773313278972,3.81551667,86.734,86.7,10.379]
[1773313280968,3.81551667,86.734,86.704,10.378]
[1773313284072,3.81551667,86.734,86.704,14.04197273]
[1773313284376,231.04797364,87.149,86.711,3.66397273]
[1773313284377,3.6612899,86.759,86.711,3.66397273]
[1773313285880,3.6612899,86.757,86.715,14.04097273]
[1773313286279,3.6612899,86.757,86.716,3.66397273]
[1773313286873,10.372,86.754,86.716,3.66397273]
[1773313287880,14.0332899,86.754,86.716,3.66397273]
[1773313289273,14.0332899,86.754,86.718,3.66397273]
[1773313289779,3.6612899,86.753,86.718,3.66397273]
[1773313290675,10.372,86.754,86.72,3.66397273]
[1773313290974,10.372,86.754,86.68,43.58]
[1773313290975,11.58901242,86.789,86.741,3.66397273]
[1773313291279,3.6612899,86.789,86.741,3.66397273]
[1773313291986,3.6612899,86.783,86.743,3.66397273]
[1773313292580,3.6612899,86.783,86.746,3.66397273]
[1773313293074,3.6612899,86.779,86.723,10.376]
[1773313293278,3.6612899,86.767,86.721,3.66397273]
[1773313294070,3.6612899,86.767,86.73,3.66397273]
[1773313294273,14.0302899,86.778,86.731,3.66397273]
[1773313294486,3.6612899,86.777,86.731,3.66397273]
[1773313294875,3.6612899,86.777,86.736,3.66397273]
[1773313295681,10.368,86.787,86.746,3.66397273]
[1773313296283,3.6612899,86.788,86.75,6.1457568]
[1773313297178,3.6612899,86.788,86.751,10.372]
[1773313300284,10.368,86.787,86.75,3.66397273]
[1773313300676,3.6612899,86.786,86.75,3.66397273]
[1773313300877,3.6612899,86.783,86.736,3.66397273]
[1773313301979,3.6612899,86.777,86.736,14.03797273]
[1773313302182,3.6612899,86.777,86.736,3.66397273]
[1773313303179,3.6612899,86.769,86.729,10.375]
[1773313303684,14.03776304,86.765,86.723,3.98837539]
[1773313304378,14.03776304,86.765,86.722,10.376]
[1773313304379,3.66676304,86.755,86.714,3.98837539]
[1773313305880,3.66676304,86.755,86.717,3.98837539]
[1773313307883,10.372,86.753,86.717,3.98837539]
[1773313311182,3.66676304,86.755,86.718,10.376]
[1773313311485,4.03833575,86.766,86.717,3.98837539]
[1773313312886,4.03833575,86.763,86.723,10.376]
[1773313313085,4.03833575,86.763,86.717,3.98837539]
[1773313314480,4.03833575,86.754,86.717,3.98837539]
[1773313314787,4.03833575,86.754,86.716,10.377]
[1773313319092,4.03833575,86.752,86.716,10.377]
[1773313320594,4.03833575,86.752,86.715,4.00603685]
[1773313321588,4.03833575,86.767,86.715,4.00603685]
[1773313322398,4.03833575,86.767,86.731,4.00603685]
[1773313323895,4.03833575,86.767,86.734,10.374]
[1773313325787,4.03833575,86.767,86.734,14.38003685]
[1773313325991,4.03833575,86.767,86.735,4.00603685]
[1773313326393,4.03833575,86.767,86.736,10.374]
[1773313327088,4.03833575,86.767,86.738,10.374]
[1773313327297,4.03833575,86.767,86.737,4.00603685]
[1773313327788,4.03833575,86.767,86.737,14.38003685]
[1773313328094,4.03833575,86.779,86.738,4.00603685]
[1773313328589,4.03833575,86.777,86.738,4.00603685]
[1773313329296,4.03833575,86.766,86.727,4.00603685]
[1773313329794,4.03833575,86.778,86.731,4.00603685]
[1773313330597,4.03833575,86.778,86.745,4.00603685]
[1773313331900,4.03833575,86.778,86.746,10.373]
[1773313332598,4.03833575,86.778,86.746,14.37903685]
[1773313332790,4.03833575,86.788,86.747,4.00603685]
[1773313333698,4.03833575,86.788,86.746,10.373]
[1773313334093,4.03833575,86.786,86.737,14.38003685]
[1773313335900,4.03833575,86.783,86.738,4.00603685]
[1773313337300,4.03833575,86.783,86.745,4.00603685]
[1773313337801,4.03833575,86.783,86.73,2.47823778]
[1773313337802,4.03833575,86.777,86.735,14.38003685]
[1773313338002,4.03833575,86.769,86.724,4.00603685]
[1773313338399,4.03833575,86.759,86.724,4.00603685]
[1773313340799,4.03833575,86.759,86.724,14.38203685]
[1773313341106,4.03833575,86.759,86.725,4.01355498]
[1773313346604,4.03833575,86.759,86.728,10.375]
[1773313347404,4.03833575,86.759,86.728,14.38855498]
[1773313348506,4.03833575,86.759,86.699,43.56]
[1773313348507,4.03833575,86.759,86.714,4.01355498]
[1773313349604,4.00796871,86.739,86.703,4.01355498]
[1773313350500,4.00796871,86.729,86.691,4.01355498]
[1773313351704,4.00796871,86.719,86.68,4.01355498]
[1773313354111,2.47823778,86.71,86.665,4.01355498]
[1773313355503,4.00796871,86.702,86.665,4.01355498]
[1773313356712,14.38596871,86.702,86.665,4.01355498]
[1773313357418,14.38696871,86.695,86.653,14.39755498]
[1773313357616,4.00796871,86.694,86.654,4.01355498]
[1773313357810,4.00796871,86.694,86.657,4.01355498]
[1773313358011,4.00796871,86.709,86.657,4.01355498]
[1773313359113,4.00796871,86.701,86.657,4.01355498]
[1773313359914,4.00796871,86.725,86.671,4.01355498]
[1773313360313,10.376,86.724,86.683,10.381]
[1773313360516,4.00796871,86.723,86.671,4.01355498]
[1773313362023,4.00796871,86.723,86.677,4.01355498]
[1773313365312,4.00796871,86.723,86.678,14.20782603]
[1773313365521,4.00796871,86.723,86.679,3.82682603]
[1773313366011,4.00796871,86.723,86.683,3.82682603]
[1773313367618,3.93396921,86.713,86.671,3.82682603]
[1773313369020,3.93396921,86.713,86.674,3.82682603]
[1773313369317,3.93396921,86.713,86.66,2.48393783]
[1773313369318,3.93396921,86.729,86.681,3.82682603]
[1773313370320,3.9019326,86.74,86.697,3.95687991]
[1773313371921,3.9019326,86.74,86.7,3.95687991]
[1773313373116,3.9019326,86.737,86.7,3.95687991]
[1773313374020,3.9019326,86.735,86.692,10.379]
[1773313374511,3.9019326,86.735,86.693,3.95687991]
[1773313374713,3.9019326,86.735,86.697,10.379]
[1773313378120,3.9019326,86.735,86.697,14.33587991]
[1773313378719,3.9019326,86.735,86.698,3.95687991]
[1773313378921,3.9019326,86.735,86.699,10.379]
[1773313379317,3.9019326,86.735,86.699,14.33587991]
[1773313379512,3.9019326,86.735,86.702,10.378]
[1773313379714,3.9019326,86.735,86.703,3.95687991]
[1773313380625,10.373,86.745,86.705,3.95687991]
[1773313380817,3.9019326,86.749,86.705,3.95687991]
[1773313381022,3.9019326,86.76,86.711,3.95687991]
[1773313381620,3.9019326,86.759,86.714,3.95687991]
[1773313383027,14.2739326,86.755,86.714,3.95687991]
[1773313383916,10.372,86.753,86.716,3.95687991]
[1773313384319,3.9019326,86.75,86.708,10.377]
[1773313384628,3.9019326,86.75,86.705,3.95687991]
[1773313384925,3.9019326,86.745,86.705,3.95687991]
[1773313385723,3.9019326,86.778,86.721,3.95687991]
[1773313386022,3.9019326,86.778,86.731,3.95687991]
[1773313386528,3.9019326,86.778,86.741,3.95687991]
[1773313386728,10.369,86.784,86.741,3.95687991]
[1773313387228,14.2709326,86.784,86.741,3.95687991]
[1773313387421,3.9019326,86.783,86.741,3.95687991]
[1773313387926,3.9019326,86.783,86.747,10.373]
[1773313388126,3.9019326,86.779,86.741,3.95687991]
[1773313392039,3.9019326,86.777,86.729,3.95687991]
[1773313392919,10.37,86.773,86.731,3.95687991]
[1773313393932,3.9019326,86.777,86.733,3.95687991]
[1773313394928,3.9019326,86.777,86.737,10.374]
[1773313395729,3.9019326,86.777,86.741,3.95687991]
[1773313395930,3.9019326,86.804,86.751,3.95687991]
[1773313396935,3.9019326,86.804,86.75,2.48393783]
[1773313396936,10.367,86.797,86.754,3.95687991]
[1773313397331,3.9019326,86.804,86.754,3.95687991]
[1773313398634,10.368,86.791,86.754,3.95687991]
[1773313398835,10.368,86.791,86.708,21.2626789]
[1773313398836,3.9019326,86.79,86.741,3.95687991]
[1773313399332,3.9019326,86.789,86.741,3.95687991]
[1773313399723,10.37,86.774,86.741,3.95687991]
[1773313399927,3.9019326,86.789,86.741,3.95687991]
[1773313400831,10.369,86.781,86.741,3.95687991]
[1773313405035,10.369,86.781,86.73,2.48393783]
[1773313405036,3.70378326,86.781,86.745,3.67028071]
[1773313405337,3.70378326,86.799,86.745,3.67028071]
[1773313405727,10.367,86.795,86.756,3.67028071]
[1773313406939,10.367,86.795,86.758,3.67028071]
[1773313407438,3.70378326,86.799,86.758,3.67028071]
[1773313408839,3.70378326,86.799,86.76,10.371]
[1773313409040,3.70378326,86.799,86.76,14.04128071]
[1773313409338,3.70378326,86.799,86.761,3.67028071]
[1773313409636,3.70378326,86.799,86.764,3.67028071]
[1773313414345,10.367,86.798,86.764,3.67028071]
[1773313414942,14.07078326,86.798,86.764,3.67028071]
[1773313415441,3.70378326,86.813,86.766,3.67028071]
[1773313416736,3.70378326,86.813,86.772,10.37]
[1773313417539,3.70378326,86.813,86.772,14.04028071]
[1773313420545,3.70378326,86.813,86.773,3.67028071]
[1773313424844,3.70378326,86.813,86.737,21.2626789]
[1773313424845,4.03897516,86.799,86.741,3.9155742]
[1773313425750,4.03897516,86.786,86.745,10.373]
[1773313425946,4.03897516,86.779,86.745,10.373]
[1773313426454,6.51621508,86.79,86.749,3.9155742]
[1773313426952,4.03897516,86.789,86.749,3.9155742]
[1773313427953,4.03897516,86.789,86.751,10.372]
[1773313428351,10.368,86.792,86.752,3.9155742]
[1773313429153,10.368,86.792,86.754,10.372]
[1773313429555,4.03897516,86.799,86.754,10.372]
[1773313429751,2.47723992,86.79,86.752,3.9155742]
[1773313430052,6.51621508,86.79,86.752,3.9155742]
[1773313430248,4.03897516,86.79,86.752,3.9155742]
[1773313430754,4.03897516,86.79,86.747,10.373]
[1773313430755,3.96552614,86.83,86.781,3.98865143]
[1773313431049,3.96552614,86.843,86.781,3.98865143]
[1773313431250,11.32007622,86.846,86.784,10.369]
[1773313431251,14.32752614,86.839,86.784,10.369]
[1773313431452,3.96552614,86.838,86.784,14.35765143]
[1773313431650,3.96552614,86.838,86.785,3.98865143]
[1773313431846,3.96552614,86.838,86.796,3.98865143]
[1773313435360,3.96552614,86.838,86.784,3.98865143]
[1773313436848,3.96552614,86.835,86.786,3.98865143]
[1773313437554,3.96552614,86.831,86.786,3.98865143]
[1773313437759,3.96552614,86.829,86.786,3.98865143]
[1773313438063,3.96552614,86.829,86.775,14.35865143]
[1773313438257,11.75856142,86.864,86.775,3.98865143]
[1773313438258,3.96552614,86.819,86.775,3.98865143]
[1773313438457,3.96552614,86.809,86.766,10.371]
[1773313439757,2.47723992,86.81,86.767,3.98865143]